bitfinex/quotes_ETHUSD_20250722
["timestamp","ask_amount","ask_price","bid_price","bid_amount"]
[1753219482577,0.4731,3708.9,3708.6,0.001]
[1753219482779,0.4731,3708.9,3708.7,4.108]
[1753219483220,0.5,3708.8,3708.7,4.108]
[1753219483589,0.9731,3708.8,3708.7,4.108]
[1753219483794,0.55,3709.2,3708.7,4.108]
[1753219484004,0.4731,3709.1,3708.9,2.69617826]
[1753219484207,0.5,3709.3,3709.0,2.69608934]
[1753219484527,0.9731,3709.3,3709.2,2.69599913]
[1753219488992,0.5,3709.3,3709.2,2.69599913]
[1753219489922,0.002,3709.4,3709.3,2.69592645]
[1753219490801,0.4751,3709.4,3709.3,2.69592645]
[1753219492011,0.4751,3709.4,3709.3,4.109]
[1753219492909,0.4751,3709.4,3709.2,4.109]
[1753219493092,0.002,3709.4,3709.3,2.69592645]
[1753219493424,0.002,3709.4,3709.2,4.109]
[1753219493622,0.002,3709.4,3709.1,6.93941153]
[1753219493925,0.4731,3709.3,3709.2,2.69599913]
[1753219496491,0.4731,3709.3,3709.1,6.93944756]
[1753219496824,0.4731,3709.2,3709.1,2.83044756]
[1753219497023,0.4731,3709.2,3709.1,4.2424]
[1753219497334,0.4731,3709.2,3709.1,6.93847182]
[1753219497531,1.1731,3709.2,3709.1,6.93847182]
[1753219500230,1.1731,3709.2,3709.1,0.1344]
[1753219500531,0.55,3709.1,3708.9,4.108]
[1753219500740,0.4731,3709.0,3708.8,4.108]
[1753219500887,0.55,3709.1,3708.8,4.108]
[1753219501087,0.4731,3708.9,3708.8,4.108]
[1753219502345,0.8344,3709.2,3708.8,10.21321877]
[1753219502550,0.7,3709.2,3708.9,0.5676]
[1753219502691,0.7,3709.2,3709.0,4.108]
[1753219502894,0.7,3709.2,3709.1,2.69607182]
[1753219503537,0.7,3709.2,3709.1,3.26367182]
[1753219505945,0.002,3709.4,3709.3,2.69592645]
[1753219506128,0.002,3709.4,3709.3,6.80392645]
[1753219506475,0.002,3709.4,3709.3,8.37828628]
[1753219515865,0.002,3709.4,3709.3,7.94508628]
[1753219518811,0.002,3709.4,3709.3,4.2424]
[1753219519134,1.5207,3709.4,3709.2,2.69593474]
[1753219519310,1.052,3709.4,3709.2,2.69593474]
[1753219519506,0.4687,3709.3,3709.1,2.69605834]
[1753219519835,1.052,3709.4,3708.9,4.2424]
[1753219520040,1.052,3709.4,3708.6,0.001]
[1753219520041,0.55,3708.9,3708.6,0.001]
[1753219520210,0.5,3709.1,3708.6,0.001]
[1753219520393,0.55,3708.9,3708.6,0.001]
[1753219520729,0.55,3708.7,3708.6,0.001]
[1753219521147,3.7150626,3708.7,3708.6,0.001]
[1753219521697,3.91817235,3708.7,3708.6,0.001]
[1753219523234,8.04117235,3708.7,3708.6,0.001]
[1753219531720,8.03617235,3708.7,3708.6,0.001]
[1753219535118,8.03417235,3708.7,3708.6,0.001]
[1753219536859,0.75310975,3708.7,3708.6,0.001]
[1753219537223,4.86810975,3708.7,3708.6,0.001]
[1753219538280,7.3613626,3708.7,3708.6,0.001]
[1753219542869,4.665,3708.7,3708.6,0.001]
[1753219543072,7.3613626,3708.7,3708.6,0.001]
[1753219543690,4.665,3708.7,3708.6,0.001]
[1753219543871,7.3613626,3708.7,3708.6,0.001]
[1753219549309,7.3563626,3708.7,3708.6,0.001]
[1753219551581,7.8169626,3708.7,3708.6,0.001]
[1753219555292,11.3169626,3708.7,3708.6,0.001]
[1753219555702,7.2069626,3708.7,3708.6,0.001]
[1753219555902,11.3169626,3708.7,3708.6,0.001]
[1753219556092,7.2069626,3708.7,3708.6,0.001]
[1753219556294,11.3169626,3708.7,3708.6,0.001]
[1753219560205,6.7463626,3708.7,3708.6,0.001]
[1753219560403,0.20080908,3708.8,3708.6,0.001]
[1753219560602,4.11,3708.7,3708.6,1.2272]
[1753219560809,4.66,3708.7,3708.6,1.2272]
[1753219561224,0.1344,3708.8,3708.6,1.2272]
[1753219561431,0.002,3708.9,3708.8,2.6962899]
[1753219561603,4.113,3708.9,3708.8,2.6962899]
[1753219561798,4.113,3708.9,3708.8,3.1639899]
[1753219563397,4.113,3708.9,3708.6,1.2272]
[1753219563398,0.55,3708.8,3708.6,1.2272]
[1753219563624,4.111,3708.7,3708.6,0.7595]
[1753219564248,4.111,3708.7,3708.6,1.2272]
[1753219565360,4.111,3708.7,3708.6,3.92363531]
[1753219565856,4.111,3708.7,3708.6,1.2272]
[1753219567848,4.111,3708.7,3708.6,3.92363531]
[1753219572926,0.552,3708.9,3708.7,2.6963626]
[1753219573127,4.66,3708.8,3708.7,3.1640626]
[1753219575366,0.002,3708.9,3708.7,3.1640626]
[1753219575367,0.002,3708.9,3708.8,2.6962899]
[1753219575664,1e-08,3708.9,3708.8,7.01575279]
[1753219575884,1e-08,3708.9,3708.8,6.9887899]
[1753219576034,0.002,3709.4,3709.3,3.52072645]
[1753219576600,0.002,3709.4,3709.3,4.12282645]
[1753219576752,0.002,3709.4,3709.3,4.80471019]
[1753219580753,3.24593249,3709.3,3708.8,0.7898]
[1753219580970,0.55,3709.1,3708.7,0.1344]
[1753219581166,0.1344,3709.0,3708.6,0.7908]
[1753219581384,0.55,3708.9,3708.6,0.001]
[1753219581697,0.55,3708.9,3708.6,2.69741731]
[1753219581876,0.55,3708.9,3708.6,0.001]
[1753219582076,0.55,3708.9,3708.8,2.6962899]
[1753219582275,0.55,3708.9,3708.7,3.14034227]
[1753219582791,0.55,3708.9,3708.6,2.69741446]
[1753219583096,0.55,3708.9,3708.7,2.69634391]
[1753219583597,0.55,3708.9,3708.6,3.1414235]
[1753219583811,0.55,3708.9,3708.6,0.445]
[1753219584684,3.2463626,3708.7,3708.6,0.001]
[1753219585088,3.7136626,3708.7,3708.6,0.001]
[1753219587784,0.55,3708.7,3708.6,0.001]
[1753219587988,4.659,3708.7,3708.6,0.001]
[1753219588720,7.3553626,3708.7,3708.6,0.001]
[1753219588926,4.659,3708.7,3708.6,0.001]
[1753219590803,0.55,3708.7,3708.6,0.001]
[1753219591110,0.6844,3708.7,3708.6,3.14143531]
[1753219591317,2.69593015,3709.3,3708.7,2.69631252]
[1753219591501,0.55,3709.0,3708.7,2.69631252]
[1753219591701,0.55,3709.0,3708.9,2.6962172]
[1753219591928,4.659,3709.0,3708.9,2.6962172]
[1753219592133,4.659,3709.0,3708.9,3.1402172]
[1753219593325,4.659,3709.0,3708.9,0.444]
[1753219594154,4.659,3709.0,3708.9,3.1402172]
[1753219594354,4.659,3709.0,3708.9,0.444]
[1753219594555,4.659,3709.0,3708.9,3.1402172]
[1753219596342,0.1344,3709.1,3709.0,2.69614451]
[1753219596521,0.55,3709.3,3709.2,2.69595892]
[1753219596727,4.659,3709.3,3709.2,0.444]
[1753219596936,4.659,3709.3,3709.0,0.7976]
[1753219596937,4.659,3709.3,3709.1,2.69607171]
[1753219597437,4.659,3709.3,3709.0,3.49371739]
[1753219597637,4.659,3709.3,3709.0,3.93771739]
[1753219598910,4.659,3709.3,3708.8,0.1344]
[1753219599116,0.6844,3709.1,3708.6,0.001]
[1753219599317,4.109,3709.0,3708.6,0.001]
[1753219599551,6.80515301,3709.0,3708.6,0.001]
[1753219599750,4.109,3709.0,3708.6,0.001]
[1753219600057,4.109,3709.0,3708.6,2.69743006]
[1753219600224,4.109,3709.0,3708.7,2.69635057]
[1753219601419,4.109,3709.0,3708.7,0.444]
[1753219601643,4.109,3709.0,3708.6,0.001]
[1753219601849,4.109,3709.0,3708.6,3.1414252]
[1753219602258,4.109,3709.0,3708.6,0.001]
[1753219602259,3.2463626,3708.7,3708.6,0.001]
[1753219602477,7.3553626,3708.7,3708.6,0.001]
[1753219602636,7.8226626,3708.7,3708.6,0.001]
[1753219602959,7.3553626,3708.7,3708.6,0.001]
[1753219603359,4.659,3708.7,3708.6,0.001]
[1753219603544,7.3553626,3708.7,3708.6,0.001]
[1753219603954,7.8226626,3708.7,3708.6,0.001]
[1753219604352,8.3226626,3708.7,3708.6,0.001]
[1753219607370,4.2136626,3708.7,3708.6,0.001]
[1753219607675,8.45607187,3708.7,3708.6,0.001]
[1753219609187,4.34707187,3708.7,3708.6,0.001]
[1753219609389,8.45607187,3708.7,3708.6,0.001]
[1753219609684,3.7463626,3708.7,3708.6,0.001]
[1753219609884,7.8553626,3708.7,3708.6,0.001]
[1753219612056,8.2881626,3708.7,3708.6,0.001]
[1753219612559,4.109,3708.7,3708.6,0.001]
[1753219612772,4.109,3708.7,3708.6,0.456]
[1753219613083,4.659,3708.7,3708.6,0.456]
[1753219613873,4.659,3708.7,3708.6,0.001]
[1753219614072,13.89338137,3708.7,3708.6,0.001]
[1753219614267,17.39338137,3708.7,3708.6,0.001]
[1753219614814,17.39338137,3708.7,3708.2,0.001]
[1753219614815,12.85187222,3708.3,3708.2,0.001]
[1753219614985,16.96087222,3708.3,3708.2,0.001]
[1753219615173,17.39367222,3708.3,3708.2,0.001]
[1753219616504,17.59801232,3708.3,3708.2,0.001]
[1753219620276,6.95099355,3708.3,3708.2,0.001]
[1753219620476,11.49279355,3708.3,3708.2,0.001]
[1753219621813,3.24687162,3708.0,3707.9,0.001]
[1753219622126,16.96209039,3708.0,3707.9,0.001]
[1753219622325,17.39489039,3708.0,3707.9,0.001]
[1753219625142,11.28967162,3708.0,3707.9,0.001]
[1753219626723,7.17967162,3708.0,3707.9,0.001]
[1753219626933,19.22967162,3708.0,3707.9,0.001]
[1753219627516,15.11967162,3708.0,3707.9,0.001]
[1753219627722,19.22967162,3708.0,3707.9,0.001]
[1753219631100,11.28967162,3708.0,3707.9,0.001]
[1753219634314,10.35687162,3708.0,3707.9,0.001]
[1753219636038,6.24687162,3708.0,3707.9,0.001]
[1753219636241,10.35687162,3708.0,3707.9,0.001]
[1753219639026,6.24687162,3708.0,3707.9,0.001]
[1753219639224,10.35687162,3708.0,3707.9,0.001]
[1753219641368,6.24687162,3708.0,3707.9,0.001]
[1753219641531,10.35687162,3708.0,3707.9,0.001]
[1753219643473,6.24687162,3708.0,3707.9,0.001]
[1753219643765,10.35687162,3708.0,3707.9,0.001]
[1753219645060,6.24687162,3708.0,3707.9,0.001]
[1753219645385,10.35687162,3708.0,3707.9,0.001]
[1753219646145,11.05687162,3708.0,3707.9,0.001]
[1753219647785,11.49007162,3708.0,3707.9,0.001]
[1753219649554,11.05687162,3708.0,3707.9,0.001]
[1753219658031,11.05687162,3708.0,3707.9,0.4661]
[1753219660560,11.05687162,3708.0,3707.9,0.001]
[1753219661757,3.39687162,3708.0,3707.9,1.2638]
[1753219661949,7.50587162,3708.0,3707.9,1.2638]
[1753219662261,8.05587162,3708.0,3707.9,1.2638]
[1753219662675,8.05587162,3708.0,3707.9,0.4661]
[1753219664457,8.05587162,3708.0,3707.9,0.001]
[1753219665343,8.05487162,3708.0,3707.9,0.4661]
[1753219666162,8.05487162,3708.0,3707.9,0.001]
[1753219669198,8.05487162,3708.0,3707.9,0.4749]
[1753219669860,8.05487162,3708.0,3707.9,0.001]
[1753219670872,1.25,3708.0,3707.9,1.2654]
[1753219671099,0.7,3708.0,3707.9,1.2654]
[1753219671399,4.808,3708.0,3707.9,1.2654]
[1753219672104,5.358,3708.0,3707.9,1.2654]
[1753219673097,1.25,3708.0,3707.9,1.2654]
[1753219673486,5.358,3708.0,3707.9,1.2654]
[1753219674193,1.25,3708.0,3707.9,1.2654]
[1753219674393,5.358,3708.0,3707.9,1.2654]
[1753219674984,1.25,3708.0,3707.9,1.2654]
[1753219675180,0.7,3708.0,3707.9,1.2654]
[1753219675385,4.807,3708.0,3707.9,1.2654]
[1753219676387,0.7,3708.0,3707.9,4.37213258]
[1753219676716,4.807,3708.0,3707.9,4.37213258]
[1753219677093,4.807,3708.0,3707.9,1.67518822]
[1753219678613,4.807,3708.0,3707.9,1.2654]
[1753219684020,0.7,3708.0,3707.9,1.2654]
[1753219684222,4.807,3708.0,3707.9,1.2654]
[1753219689686,0.7,3708.0,3707.9,1.2654]
[1753219689886,4.806,3708.0,3707.9,1.2654]
[1753219691725,0.7,3708.0,3707.9,1.2654]
[1753219691906,4.806,3708.0,3707.9,1.2654]
[1753219693988,4.806,3708.0,3707.9,3.96234436]
[1753219695294,4.806,3708.0,3707.9,4.64182755]
[1753219695629,4.106,3708.0,3707.9,4.77622755]
[1753219697838,0.002,3708.2,3707.9,4.77622755]
[1753219697839,0.002,3708.2,3708.1,2.69679889]
[1753219698003,4.107,3708.2,3708.1,3.65139889]
[1753219698343,4.107,3708.2,3708.1,4.09859889]
[1753219698499,4.107,3708.2,3708.1,5.45682341]
[1753219700953,0.002,3708.2,3708.1,11.56204218]
[1753219703348,0.002,3708.2,3708.1,5.45682341]
[1753219706319,0.002,3708.2,3708.1,9.56082341]
[1753219723310,0.002,3708.2,3707.9,0.001]
[1753219723477,0.5,3708.1,3707.9,2.69793852]
[1753219723803,0.4481,3708.0,3707.9,0.001]
[1753219726945,0.4481,3708.0,3707.9,2.69794436]
[1753219727125,0.002,3708.2,3708.1,2.69679889]
[1753219727500,0.002,3708.2,3708.1,3.26489889]
[1753219727943,0.002,3708.2,3708.1,3.29186687]
[1753219732343,0.002,3708.2,3708.1,7.10566687]
[1753219732504,0.002,3708.2,3708.1,7.07869889]
[1753219732705,1e-08,3708.2,3708.1,9.40223179]
[1753219737341,1e-08,3708.2,3708.1,13.06953179]
[1753219737877,1e-08,3708.2,3708.1,8.96853179]
[1753219738019,0.43690001,3708.2,3708.1,0.1344]
[1753219738220,0.43690001,3708.2,3707.9,0.001]
[1753219738426,0.5,3708.1,3707.9,0.001]
[1753219738822,0.4369,3708.0,3707.9,0.001]
[1753219739052,3.68377162,3708.0,3707.9,0.001]
[1753219739268,0.9869,3708.0,3707.9,0.001]
[1753219739847,4.18377162,3708.0,3707.9,0.001]
[1753219740134,1.68965079,3708.0,3707.9,0.001]
[1753219740673,5.79065079,3708.0,3707.9,0.001]
[1753219741575,1.68965079,3708.0,3707.9,0.001]
[1753219741785,1.05,3708.0,3707.9,2.69794436]
[1753219742087,1.05,3708.0,3707.9,0.001]
[1753219742387,1.4869,3708.0,3707.9,0.001]
[1753219742998,10.28954872,3708.0,3707.9,0.001]
[1753219743203,13.28954872,3708.0,3707.9,0.001]
[1753219743406,7.18377162,3708.0,3707.9,0.001]
[1753219743701,5.79366394,3708.0,3707.9,0.001]
[1753219746667,1.4869,3708.0,3707.9,0.001]
[1753219746968,5.151,3708.0,3707.9,0.001]
[1753219747161,5.5879,3708.0,3707.9,0.001]
[1753219747862,5.151,3708.0,3707.9,0.001]
[1753219748485,0.1344,3708.1,3707.9,0.001]
[1753219748691,1e-08,3708.2,3707.9,0.001]
[1753219748692,4.102,3708.0,3707.9,0.001]
[1753219749101,1e-08,3708.2,3708.1,2.69679889]
[1753219749309,4.10200001,3708.2,3708.1,2.69679889]
[1753219749465,1e-08,3708.2,3708.1,2.69679889]
[1753219749668,1e-08,3708.2,3708.1,2.83119889]
[1753219754701,4.10200001,3708.2,3708.1,2.83119889]
[1753219754899,4.10200001,3708.2,3708.1,3.46024803]
[1753219755996,4.10200001,3708.2,3708.1,3.89394803]
[1753219757800,4.10100001,3708.2,3708.1,3.89394803]
[1753219758612,1e-08,3708.2,3708.1,3.89394803]
[1753219760104,1e-08,3708.2,3708.1,3.46024803]
[1753219760305,1e-08,3708.2,3708.1,2.83119889]
[1753219760719,1e-08,3708.2,3708.1,3.27129889]
[1753219763123,1e-08,3708.2,3708.1,2.83119889]
[1753219764232,1e-08,3708.2,3708.1,3.27129889]
[1753219769245,1e-08,3708.2,3708.1,2.83119889]
[1753219769460,1e-08,3708.2,3707.9,3.02465299]
[1753219769461,0.55,3708.1,3707.9,0.001]
[1753219770537,3.70784149,3708.1,3707.9,0.001]
[1753219770745,3.15787162,3708.0,3707.9,0.001]
[1753219770946,0.461,3708.0,3707.9,0.001]
[1753219772155,3.15787162,3708.0,3707.9,0.001]
[1753219772350,0.461,3708.0,3707.9,0.001]
[1753219772554,3.15787162,3708.0,3707.9,0.001]
[1753219773010,0.461,3708.0,3707.9,0.001]
[1753219775479,0.55,3708.1,3707.9,0.001]
[1753219776144,3.24679917,3708.1,3707.9,0.001]
[1753219776653,0.55,3708.1,3707.9,0.001]
[1753219777311,4.1,3708.0,3707.9,0.001]
[1753219778052,3.70780781,3708.1,3707.9,0.001]
[1753219778369,6.79687162,3708.0,3707.9,0.001]
[1753219778717,2.69687162,3708.0,3707.9,0.001]
[1753219778920,4.1,3708.0,3707.9,0.001]
[1753219779347,3.70782895,3708.1,3707.9,0.001]
[1753219779559,4.1,3708.0,3707.9,0.001]
[1753219780685,3.70782895,3708.1,3707.9,0.001]
[1753219780841,4.1,3708.0,3707.9,0.001]
[1753219781367,6.79687162,3708.0,3707.9,0.001]
[1753219781746,2.69687162,3708.0,3707.9,0.001]
[1753219782236,6.79687162,3708.0,3707.9,0.001]
[1753219782765,2.69687162,3708.0,3707.9,0.001]
[1753219782924,4.1,3708.0,3707.9,0.001]
[1753219783640,3.24682697,3708.1,3707.9,0.001]
[1753219783843,4.1,3708.0,3707.9,0.001]
[1753219784252,6.79687162,3708.0,3707.9,0.001]
[1753219784585,14.41364872,3708.0,3707.9,0.001]
[1753219788754,17.41364872,3708.0,3707.9,0.001]
[1753219792581,13.31364872,3708.0,3707.9,0.001]
[1753219792885,17.41364872,3708.0,3707.9,0.001]
[1753219794950,13.31364872,3708.0,3707.9,0.001]
[1753219795151,17.41364872,3708.0,3707.9,0.001]
[1753219800349,6.74687162,3708.0,3707.9,0.001]
[1753219800571,10.29687162,3708.0,3707.9,0.001]
[1753219800739,10.84687162,3708.0,3707.9,0.001]
[1753219801550,6.24687162,3708.0,3707.9,0.001]
[1753219801752,3.0,3708.0,3707.9,0.001]
[1753219801959,6.79687162,3708.0,3707.9,0.4414]
[1753219802156,4.65,3708.0,3707.9,0.4414]
[1753219802773,7.34687162,3708.0,3707.9,0.4414]
[1753219803158,7.84687162,3708.0,3707.9,0.001]
[1753219803764,7.34687162,3708.0,3707.9,0.001]
[1753219806085,17.39444872,3708.0,3707.9,0.001]
[1753219806382,11.28867162,3708.0,3707.9,0.001]
[1753219816293,11.28767162,3708.0,3707.9,0.001]
[1753219818804,10.84587162,3708.0,3707.9,0.001]
[1753219820094,11.27887162,3708.0,3707.9,0.001]
[1753219822472,3.74759913,3707.0,3706.9,0.001]
[1753219822678,16.95237623,3707.0,3706.9,0.001]
[1753219822994,3.24796303,3706.5,3706.4,0.001]
[1753219823200,7.34696303,3706.5,3706.4,0.001]
[1753219823506,3.24818142,3706.2,3706.1,0.001]
[1753219823707,7.34718142,3706.2,3706.1,0.001]
[1753219824004,7.78018142,3706.2,3706.1,0.001]
[1753219824773,7.546152,3706.2,3706.1,0.001]
[1753219825275,7.979152,3706.2,3706.1,0.001]
[1753219826473,7.546152,3706.2,3706.1,0.001]
[1753219827713,4.29797058,3706.2,3706.1,0.434]
[1753219827896,6.996152,3706.2,3706.1,0.434]
[1753219828218,7.546152,3706.2,3706.1,0.434]
[1753219828911,4.1,3706.2,3706.1,1.2103]
[1753219829406,0.75638841,3706.3,3706.1,1.2103]
[1753219829600,4.1,3706.2,3706.1,0.7773]
[1753219829799,4.1,3706.2,3706.1,1.2103]
[1753219830182,3.24782385,3706.7,3706.1,1.2103]
[1753219830183,0.55,3706.4,3706.1,1.60117277]
[1753219830519,4.099,3706.3,3706.2,0.433]
[1753219834343,4.1,3706.3,3706.2,0.433]
[1753219836130,0.1344,3706.8,3706.2,0.433]
[1753219836309,4.1,3706.7,3706.3,0.7879]
[1753219836637,4.1,3706.7,3706.4,0.433]
[1753219838033,4.1,3706.6,3706.4,0.433]
[1753219839213,4.1,3706.6,3706.4,3.13102484]
[1753219839417,4.1,3706.6,3706.5,0.433]
[1753219842104,4.099,3706.6,3706.5,0.433]
[1753219842516,4.099,3706.6,3706.5,1.213]
[1753219842840,4.099,3706.6,3706.5,3.91096303]
[1753219845241,4.101,3706.6,3706.5,3.91096303]
[1753219845551,4.101,3706.6,3706.5,1.88734675]
[1753219845851,4.101,3706.6,3706.5,1.213]
[1753219846953,0.002,3706.6,3706.5,3.91096303]
[1753219847117,4.101,3706.6,3706.5,1.213]
[1753219852864,4.101,3706.6,3706.5,3.91096303]
[1753219853171,4.101,3706.6,3706.5,1.88735318]
[1753219854167,0.55,3706.4,3706.1,0.001]
[1753219854469,2.69818142,3706.2,3706.1,0.001]
[1753219855057,3.68608142,3706.2,3706.1,0.001]
[1753219855366,4.18608142,3706.2,3706.1,0.001]
[1753219857769,3.74818142,3706.2,3706.1,0.001]
[1753219857939,7.34718142,3706.2,3706.1,0.001]
[1753219858152,7.34918142,3706.2,3706.1,0.001]
[1753219858971,0.55,3706.2,3706.1,0.001]
[1753219859173,4.1,3706.2,3706.1,0.4539]
[1753219860184,0.1344,3706.3,3706.1,0.4539]
[1753219860371,4.1,3706.2,3706.1,0.001]
[1753219861087,4.1,3706.2,3706.1,0.4539]
[1753219861654,7.84818142,3706.2,3706.1,0.001]
[1753219861999,8.28608142,3706.2,3706.1,0.001]
[1753219864762,8.29108142,3706.2,3706.1,0.001]
[1753219865089,8.29208142,3706.2,3706.1,0.001]
[1753219865289,4.18608142,3706.2,3706.1,0.001]
[1753219865456,7.85318142,3706.2,3706.1,0.001]
[1753219866886,3.74818142,3706.2,3706.1,0.001]
[1753219867190,7.85418142,3706.2,3706.1,0.001]
[1753219867684,3.74818142,3706.2,3706.1,0.001]
[1753219867869,7.85318142,3706.2,3706.1,0.001]
[1753219868487,3.74818142,3706.2,3706.1,0.001]
[1753219868784,7.85318142,3706.2,3706.1,0.001]
[1753219868990,8.29108142,3706.2,3706.1,0.001]
[1753219869698,4.18608142,3706.2,3706.1,0.001]
[1753219869857,8.29008142,3706.2,3706.1,0.001]
[1753219871183,4.18608142,3706.2,3706.1,0.001]
[1753219871377,8.28908142,3706.2,3706.1,0.001]
[1753219872360,3.68608142,3706.2,3706.1,0.001]
[1753219872559,7.78908142,3706.2,3706.1,0.001]
[1753219873488,3.68608142,3706.2,3706.1,0.001]
[1753219873796,7.35118142,3706.2,3706.1,0.001]
[1753219874695,3.24818142,3706.2,3706.1,0.001]
[1753219874894,7.35018142,3706.2,3706.1,0.001]
[1753219875566,7.34918142,3706.2,3706.1,0.001]
[1753219876599,7.78708142,3706.2,3706.1,0.001]
[1753219877067,7.34918142,3706.2,3706.1,0.001]
[1753219877770,7.80208142,3706.2,3706.1,0.001]
[1753219878516,3.70108142,3706.2,3706.1,0.001]
[1753219878668,7.80208142,3706.2,3706.1,0.001]
[1753219879296,8.30208142,3706.2,3706.1,1e-08]
[1753219880469,11.30208142,3706.2,3706.1,1e-08]
[1753219884321,3.74869113,3705.5,3705.4,1e-08]
[1753219884487,7.84869113,3705.5,3705.4,1e-08]
[1753219884699,6.24876396,3705.4,3705.3,1e-08]
[1753219884900,7.20166396,3705.4,3705.3,1e-08]
[1753219885221,11.31366396,3705.4,3705.3,1e-08]
[1753219885421,11.51765734,3705.4,3705.3,1e-08]
[1753219886300,11.51865734,3705.4,3705.3,1e-08]
[1753219887184,7.40565734,3705.4,3705.3,1e-08]
[1753219887380,11.51965734,3705.4,3705.3,1e-08]
[1753219888312,11.06675734,3705.4,3705.3,1e-08]
[1753219888503,6.95275734,3705.4,3705.3,1e-08]
[1753219888704,11.06675734,3705.4,3705.3,1e-08]
[1753219889435,11.51965734,3705.4,3705.3,1e-08]
[1753219892216,11.51765734,3705.4,3705.3,1e-08]
[1753219892578,11.06475734,3705.4,3705.3,1e-08]
[1753219893697,6.95275734,3705.4,3705.3,1e-08]
[1753219893877,10.56375734,3705.4,3705.3,1e-08]
[1753219894314,11.01665734,3705.4,3705.3,1e-08]
[1753219896142,17.12243444,3705.4,3705.3,1e-08]
[1753219896330,18.33547579,3705.4,3705.3,1e-08]
[1753219896837,18.33947579,3705.4,3705.3,1e-08]
[1753219897039,6.24927389,3704.7,3704.6,1e-08]
[1753219897232,16.97005099,3704.7,3704.6,1e-08]
[1753219897425,17.42295099,3704.7,3704.6,1e-08]
[1753219897631,23.89995099,3704.7,3704.6,1e-08]
[1753219897930,35.04363173,3704.7,3704.6,1e-08]
[1753219898438,3.7500756,3703.6,3702.6,0.8249]
[1753219898737,16.9718527,3703.6,3702.6,0.8249]
[1753219898931,16.9718527,3703.6,3702.7,0.4329]
[1753219899134,17.4247527,3703.6,3702.7,0.4329]
[1753219899336,6.7500756,3703.6,3703.1,0.4329]
[1753219899536,10.8660756,3703.6,3702.3,0.7625]
[1753219899838,17.4237527,3703.6,3702.5,0.4329]
[1753219900140,17.55911225,3703.6,3702.5,0.4329]
[1753219900815,0.5,3703.4,3702.4,0.4329]
[1753219901143,3.38535073,3702.4,3702.3,1.1954]
[1753219901304,7.50735073,3702.4,3702.3,1.1954]
[1753219901710,4.8064,3702.4,3702.3,1.1954]
[1753219902230,7.50735073,3702.4,3702.3,1.1954]
[1753219902432,4.8064,3702.4,3702.3,1.1954]
[1753219902942,0.55,3702.3,3702.1,0.7625]
[1753219903247,7.37309664,3702.2,3702.1,0.7625]
[1753219904139,7.37309664,3702.2,3702.1,1.1954]
[1753219905850,3.25109664,3702.2,3702.1,1.1954]
[1753219906327,7.37109664,3702.2,3702.1,1.1954]
[1753219910452,7.37109664,3702.2,3702.1,1.1964]
[1753219913934,7.36809664,3702.2,3702.1,1.1964]
[1753219919358,7.36509664,3702.2,3702.1,1.1964]
[1753219920724,4.664,3702.2,3702.1,1.2321]
[1753219921355,4.663,3702.2,3702.1,1.2321]
[1753219921560,7.36409664,3702.2,3702.1,1.2321]
[1753219924246,0.55,3702.2,3702.1,1.2321]
[1753219924472,4.113,3702.2,3702.1,1.2321]
[1753219924655,7.36409664,3702.2,3702.1,0.001]
[1753219924857,7.36709664,3702.2,3702.1,0.001]
[1753219925858,3.25109664,3702.2,3702.1,0.001]
[1753219926065,7.36709664,3702.2,3702.1,0.001]
[1753219926243,3.25109664,3702.2,3702.1,0.001]
[1753219926443,7.36609664,3702.2,3702.1,0.001]
[1753219932573,8.06609664,3702.2,3702.1,0.001]
[1753219932777,8.06309664,3702.2,3702.1,0.4696]
[1753219933758,3.95109664,3702.2,3702.1,0.4696]
[1753219933964,8.06309664,3702.2,3702.1,1.2263]
[1753219934391,3.95109664,3702.2,3702.1,1.2263]
[1753219934707,5.362,3702.2,3702.1,1.2263]
[1753219935295,0.7,3702.2,3702.1,3.9274696]
[1753219935594,0.1344,3703.0,3702.2,3.0]
[1753219935762,4.118,3702.9,3702.8,0.7567]
[1753219935961,4.118,3702.9,3702.8,1.2253]
[1753219936180,0.1344,3703.0,3702.8,1.2253]
[1753219936495,4.118,3702.9,3702.8,0.7567]
[1753219936699,0.1344,3703.0,3702.8,3.45735896]
[1753219936879,4.117,3702.9,3702.8,3.80309486]
[1753219937065,0.1344,3703.0,3702.8,1.1024359]
[1753219937263,4.117,3702.9,3702.8,1.1024359]
[1753219937500,0.1344,3703.0,3702.8,4.23954592]
[1753219937670,4.117,3702.9,3702.8,1.1024359]
[1753219938293,0.1344,3703.0,3702.8,1.5389359]
[1753219938487,4.117,3702.9,3702.8,1.1024359]
[1753219939095,4.117,3702.9,3702.8,1.5389359]
[1753219939800,4.817,3702.9,3702.8,1.1932]
[1753219939992,4.816,3702.9,3702.8,1.1932]
[1753219940167,0.7,3702.9,3702.8,3.89385896]
[1753219940368,4.816,3702.9,3702.8,3.89385896]
[1753219940594,4.816,3702.9,3702.8,1.8526729]
[1753219940809,4.816,3702.9,3702.8,1.1932]
[1753219941032,4.816,3702.9,3702.5,0.797]
[1753219941202,4.816,3702.9,3700.8,2.70207597]
[1753219941203,2.70093311,3702.5,3702.2,0.797]